fUST/lending_fUST_20251020
["ID","MTS","AMOUNT","RATE_DAILY","PERIOD"]
[391875017,1760942126191,-261.25,0.00038356,30]
[391875018,1760942126238,-500.0,0.00038356,30]
[391875019,1760942126280,-486.3130844,0.00038356,30]
[391875020,1760942126324,-500.0,0.00038356,30]
[391875021,1760942126367,-500.0,0.00038356,30]
[391875022,1760942126411,-500.0,0.00038356,30]
[391875023,1760942126453,-500.0,0.00038356,30]
[391875024,1760942126493,-500.0,0.00038356,30]
[391875025,1760942126531,-500.0,0.00038356,30]
[391875026,1760942126571,-500.0,0.00038356,30]
[391875027,1760942126611,-500.0,0.00038356,30]
[391875028,1760942126650,-500.0,0.00038356,30]
[391875029,1760942126691,-434.12,0.00038356,30]
[391875030,1760942126733,-500.0,0.00038356,30]
[391875031,1760942126772,-500.0,0.00038356,30]
[391875032,1760942126812,-500.0,0.00038356,30]
[391875033,1760942126852,-500.0,0.00038356,30]
[391875034,1760942126897,-500.0,0.00038356,30]
[391875035,1760942126939,-500.0,0.00038356,30]
[391875036,1760942126986,-500.0,0.00038356,30]
[391875037,1760942127029,-500.0,0.00038356,30]
[391875038,1760942127077,-500.0,0.00038356,30]
[391875039,1760942127122,-500.0,0.00038356,30]
[391875040,1760942127172,-500.0,0.00038356,30]
[391875041,1760942127218,-500.0,0.00038356,30]
[391875042,1760942127266,-500.0,0.00038356,30]
[391875043,1760942127311,-500.0,0.00038356,30]
[391875044,1760942127358,-500.0,0.00038356,30]
[391875045,1760942127405,-500.0,0.00038356,30]
[391875046,1760942127452,-500.0,0.00038356,30]
[391875047,1760942127499,-500.0,0.00038356,30]
[391875048,1760942127542,-500.0,0.00038356,30]
[391875049,1760942127589,-500.0,0.00038356,30]
[391875050,1760942127631,-500.0,0.00038356,30]
[391875051,1760942127678,-500.0,0.00038356,30]
[391875052,1760942127731,-500.0,0.00038356,30]
[391875053,1760942127776,-500.0,0.00038356,30]
[391875054,1760942127822,-500.0,0.00038356,30]
[391875055,1760942127866,-500.0,0.00038356,30]
[391875056,1760942127910,-500.0,0.00038356,30]
[391875057,1760942127954,-500.0,0.00038356,30]
[391875058,1760942127997,-500.0,0.00038356,30]
[391875059,1760942128039,-500.0,0.00038356,30]
[391875060,1760942128082,-500.0,0.00038356,30]
[391875061,1760942128128,-500.0,0.00038356,30]
[391875062,1760942128174,-451.72592012,0.00038356,30]
[391875063,1760942128218,-500.0,0.00038356,30]
[391875064,1760942128260,-500.0,0.00038356,30]
[391875065,1760942128304,-576.28999999,0.00038356,30]
[391875066,1760942128347,-500.0,0.00038356,30]
[391875067,1760942128389,-500.0,0.00038356,30]
[391875068,1760942128433,-500.0,0.00038356,30]
[391875069,1760942128475,-500.0,0.00038356,30]
[391875070,1760942128518,-500.0,0.00038356,30]
[391875071,1760942128561,-500.0,0.00038356,30]
[391875072,1760942128600,-500.0,0.00038356,30]
[391875073,1760942128641,-500.0,0.00038356,30]
[391875074,1760942128682,-500.0,0.00038356,30]
[391875075,1760942128726,-500.0,0.00038356,30]
[391875076,1760942128767,-649.43720397,0.00038356,30]
[391875077,1760942128808,-500.0,0.00038356,30]
[391875078,1760942128969,-500.0,0.00038356,30]
[391875079,1760942129020,-618.48,0.00038356,30]
[391875080,1760942129072,-500.0,0.00038356,30]
[391875081,1760942129121,-500.0,0.00038356,30]
[391875082,1760942129169,-363.12106153,0.00038356,30]
[391875083,1760942129219,-500.0,0.00038356,30]
[391875084,1760942129268,-500.0,0.00038356,30]
[391875085,1760942129315,-155.09,0.00038356,30]
[391875086,1760942129363,-500.0,0.00038356,30]
[391875087,1760942129408,-500.0,0.00038356,30]
[391875088,1760942129455,-535.56,0.00038356,30]
[391875089,1760942129499,-500.0,0.00038356,30]
[391875090,1760942129543,-500.50601833,0.00038356,30]
[391875091,1760942129592,-462.72785388,0.00038356,30]
[391875092,1760942129637,-500.0,0.00038356,30]
[391875093,1760942129679,-500.0,0.00038356,30]
[391875094,1760942129727,-480.91001046,0.00038356,30]
[391875095,1760942129773,-500.0,0.00038356,30]
[391875096,1760942129820,-500.0,0.00038356,30]
[391875097,1760942129869,-500.0,0.00038356,30]
[391875098,1760942129914,-500.0,0.00038356,30]
[391875099,1760942129962,-187.06181234,0.00038356,30]
[391875100,1760942130011,-1261.23,0.00038356,30]
[391875101,1760942130069,-1261.23,0.00038356,30]
[391875102,1760942130120,-1261.23,0.00038356,30]
[391875103,1760942130173,-1261.23,0.00038356,30]
[391875104,1760942130224,-1261.23,0.00038356,30]
[391875105,1760942130273,-1261.23,0.00038356,30]
[391875106,1760942130323,-1261.23,0.00038356,30]
[391875107,1760942130370,-1261.23,0.00038356,30]
[391875108,1760942130419,-1261.23,0.00038356,30]
[391875109,1760942130466,-500.0,0.00038356,30]
[391875110,1760942130510,-1261.23,0.00038356,30]
[391875111,1760942130555,-500.0,0.00038356,30]
[391875112,1760942130599,-1261.23,0.00038356,30]
[391875113,1760942130643,-500.0,0.00038356,30]
[391875114,1760942130687,-1261.23,0.00038356,30]
[391875115,1760942130733,-500.0,0.00038356,30]
[391875116,1760942130774,-1261.23,0.00038356,30]
[391875117,1760942130816,-487.9,0.00038356,30]
[391875118,1760942130859,-1261.23,0.00038356,30]
[391875119,1760942130901,-1261.23,0.00038356,30]
[391875120,1760942130947,-1261.23,0.00038356,30]
[391875121,1760942130993,-1261.23,0.00038356,30]
[391875122,1760942131036,-500.0,0.00038356,30]
[391875123,1760942131087,-1261.23,0.00038356,30]
[391875124,1760942131130,-486.50267035,0.00038356,30]
[391875125,1760942131178,-1261.23,0.00038356,30]
[391875126,1760942131223,-1261.23,0.00038356,30]
[391875127,1760942131271,-1261.23,0.00038356,30]
[391875128,1760942131320,-1261.23,0.00038356,30]
[391875129,1760942131370,-1261.23,0.00038356,30]
[391875130,1760942131416,-427.08975464,0.00038356,30]
[391875131,1760942131466,-1261.33,0.00038356,30]
[391875132,1760942131514,-500.0,0.00038356,30]
[391875133,1760942131557,-642.57,0.00038356,30]
[391875134,1760942131599,-500.0,0.00038356,30]
[391875135,1760942131639,-500.0,0.00038356,30]
[391875136,1760942131680,-500.0,0.00038356,30]
[391875137,1760942131726,-500.0,0.00038356,30]
[391875138,1760942131771,-500.0,0.00038356,30]
[391875139,1760942131814,-500.0,0.00038356,30]
[391875140,1760942131858,-500.0,0.00038356,30]
[391875141,1760942131900,-500.0,0.00038356,30]
[391875142,1760942131942,-500.0,0.00038356,30]
[391875143,1760942131984,-500.0,0.00038356,30]
[391875144,1760942132027,-500.0,0.00038356,30]
[391875145,1760942132075,-500.0,0.00038356,30]
[391875146,1760942132122,-500.0,0.00038356,30]
[391875147,1760942132168,-500.0,0.00038356,30]
[391875148,1760942132215,-500.0,0.00038356,30]
[391875149,1760942132263,-500.0,0.00038356,30]
[391875150,1760942132308,-313.0,0.00038356,30]
[391875151,1760942132354,-500.0,0.00038356,30]
[391875152,1760942132402,-505.53315587,0.00038356,30]
[391875153,1760942132449,-500.0,0.00038356,30]
[391875154,1760942132498,-500.0,0.00038356,30]
[391875155,1760942132544,-645.10294628,0.00038356,30]
[391875156,1760942132592,-400.13,0.00038356,30]
[391875157,1760942132639,-500.0,0.00038356,30]
[391875158,1760942132699,-500.0,0.00038356,30]
[391875159,1760942132742,-500.0,0.00038356,30]
[391875160,1760942132785,-500.0,0.00038356,30]
[391875161,1760942132828,-500.0,0.00038356,30]
[391875162,1760942132870,-500.0,0.00038356,30]
[391875163,1760942132912,-396.27211854,0.00038356,30]
[391875164,1760942132957,-500.0,0.00038356,30]
[391875165,1760942133003,-167.0,0.00038356,30]
[391875166,1760942133050,-509.19319736,0.00038356,30]
[391875167,1760942133103,-500.0,0.00038356,30]
[391875168,1760942133159,-500.0,0.00038356,30]
[391875169,1760942133215,-500.0,0.00038356,30]
[391875170,1760942133271,-500.0,0.00038356,30]
[391875171,1760942133320,-413.57,0.00038356,30]
[391875172,1760942133368,-500.0,0.00038356,30]
[391875173,1760942133566,-500.0,0.00038356,30]
[391875174,1760942133611,-500.0,0.00038356,30]
[391875175,1760942133656,-500.0,0.00038356,30]
[391875176,1760942133708,-3090.6,0.00038356,120]
[391875177,1760942133755,-151.0,0.00038356,120]
[391875178,1760942133803,-196.575432,0.00038356,120]
[391875179,1760942133848,-2145.83,0.00038356,30]
[391875180,1760942133896,-2145.83,0.00038356,30]
[391875181,1760942133941,-2145.83,0.00038356,30]
[391875182,1760942133987,-2145.83,0.00038356,30]
[391875183,1760942134035,-2145.83,0.00038356,30]
[391875184,1760942134090,-2145.83,0.00038356,30]
[391875185,1760942134150,-500.0,0.00038356,30]
[391875186,1760942134204,-2145.83,0.00038356,30]
[391875187,1760942134256,-500.0,0.00038356,30]
[391875188,1760942134309,-2145.83,0.00038356,30]
[391875189,1760942134360,-505.54154452,0.00038356,30]
[391875190,1760942134412,-239.50747893,0.00038356,30]
[391875191,1760942134461,-2145.83,0.00038356,30]
[391875192,1760942134512,-2145.83,0.00038356,30]
[391875193,1760942134563,-2145.83,0.00038356,30]
[391875194,1760942134619,-2145.83,0.00038356,30]
[391875195,1760942134671,-2145.83,0.00038356,30]
[391875196,1760942134722,-500.0,0.00038356,30]
[391875197,1760942134769,-2145.83,0.00038356,30]
[391875198,1760942134815,-500.0,0.00038356,30]
[391875199,1760942134864,-2145.83,0.00038356,30]
[391875200,1760942134915,-572.44,0.00038356,30]
[391875201,1760942134972,-2145.83,0.00038356,30]
[391875202,1760942135029,-2145.83,0.00038356,30]
[391875203,1760942135082,-2145.83,0.00038356,30]
[391875204,1760942135136,-2145.83,0.00038356,30]
[391875205,1760942135189,-2145.83,0.00038356,30]
[391875206,1760942135239,-2145.83,0.00038356,30]
[391875207,1760942135290,-500.0,0.00038356,30]
[391875208,1760942135342,-2145.83,0.00038356,30]
[391875209,1760942135391,-2145.83,0.00038356,30]
[391875210,1760942135440,-2145.91,0.00038356,30]
[391875211,1760942135485,-500.0,0.00038356,30]
[391875212,1760942135530,-500.0,0.00038356,30]
[391875213,1760942135574,-235.80295792,0.00038356,30]
[391875214,1760942135619,-500.0,0.00038356,30]
[391875215,1760942135663,-500.0,0.00038356,30]
[391875216,1760942135708,-500.0,0.00038356,30]
[391875217,1760942135753,-500.0,0.00038356,30]
[391875218,1760942135802,-500.0,0.00038356,30]
[391875219,1760942135851,-500.0,0.00038356,30]
[391875220,1760942135900,-500.0,0.00038356,30]
[391875221,1760942135947,-500.0,0.00038356,30]
[391875222,1760942135994,-500.0,0.00038356,30]
[391875223,1760942136045,-500.0,0.00038356,30]
[391875224,1760942136091,-504.17617269,0.00038356,30]
[391875225,1760942136147,-500.0,0.00038356,30]
[391875226,1760942136197,-500.0,0.00038356,30]
[391875227,1760942136247,-500.0,0.00038356,30]
[391875228,1760942136293,-349.30052344,0.00038356,30]
[391875229,1760942136339,-500.0,0.00038356,30]
[391875230,1760942136384,-500.0,0.00038356,30]
[391875231,1760942136433,-500.0,0.00038356,30]
[391875232,1760942136480,-500.0,0.00038356,30]
[391875233,1760942136528,-500.0,0.00038356,30]
[391875234,1760942136576,-309.8,0.00038356,30]
[391875235,1760942136623,-500.0,0.00038356,30]
[391875236,1760942136669,-500.0,0.00038356,30]
[391875237,1760942136715,-500.0,0.00038356,30]
[391875238,1760942136764,-500.0,0.00038356,30]
[391875239,1760942136815,-500.0,0.00038356,30]
[391875240,1760942136863,-464.02,0.00038356,30]
[391875241,1760942136909,-503.69669914,0.00038356,30]
[391875242,1760942136955,-500.0,0.00038356,30]
[391875243,1760942136999,-500.0,0.00038356,30]
[391875244,1760942137044,-500.0,0.00038356,30]
[391875245,1760942137089,-500.0,0.00038356,30]
[391875246,1760942137135,-500.0,0.00038356,30]
[391875247,1760942137184,-500.0,0.00038356,30]
[391875248,1760942137230,-500.0,0.00038356,30]
[391875249,1760942137275,-500.0,0.00038356,30]
[391875250,1760942137321,-500.0,0.00038356,30]
[391875251,1760942137368,-500.0,0.00038356,30]
[391875252,1760942137413,-163.830946,0.00038356,30]
[391875253,1760942137458,-500.0,0.00038356,30]
[391875254,1760942137504,-500.0,0.00038356,30]
[391875255,1760942137549,-500.0,0.00038356,30]
[391875256,1760942137594,-500.0,0.00038356,30]
[391875257,1760942137640,-177.92482254,0.00038356,30]
[391875258,1760942137683,-508.60652306,0.00038356,30]
[391875259,1760942137731,-500.0,0.00038356,30]
[391875260,1760942137777,-500.0,0.00038356,30]
[391875261,1760942137822,-500.0,0.00038356,30]
[391875262,1760942137865,-522.15,0.00038356,30]
[391875263,1760942137908,-500.0,0.00038356,30]
[391875264,1760942137953,-500.0,0.00038356,30]
[391875265,1760942137995,-494.36,0.00038356,30]
[391875266,1760942138144,-500.0,0.00038356,30]
[391875267,1760942138201,-500.0,0.00038356,30]
[391875268,1760942138252,-500.0,0.00038356,30]
[391875269,1760942138303,-500.0,0.00038356,30]
[391875270,1760942138357,-500.0,0.00038356,30]
[391875271,1760942138407,-500.0,0.00038356,30]
[391875272,1760942138456,-183.66,0.00038356,30]
[391875273,1760942138503,-500.0,0.00038356,30]
[391875274,1760942138548,-500.0,0.00038356,30]
[391875275,1760942138594,-500.0,0.00038356,30]
[391875276,1760942138638,-500.0,0.00038356,30]
[391875277,1760942138682,-500.0,0.00038356,30]
[391875278,1760942138729,-502.81223041,0.00038356,30]
[391875279,1760942138774,-500.0,0.00038356,30]
[391875280,1760942138818,-500.0,0.00038356,30]
[391875281,1760942138862,-500.0,0.00038356,30]
[391875282,1760942138906,-500.0,0.00038356,30]
[391875283,1760942138951,-500.0,0.00038356,30]
[391875284,1760942138996,-500.0,0.00038356,30]
[391875285,1760942139045,-173.12733688,0.00038356,30]
[391875286,1760942139100,-500.0,0.00038356,30]
[391875287,1760942139149,-344.97421832,0.00038356,30]
[391875288,1760942139196,-500.0,0.00038356,30]
[391875289,1760942139243,-500.0,0.00038356,30]
[391875290,1760942139287,-344.34,0.00038356,30]
[391875291,1760942139330,-500.28719238,0.00038356,30]
[391875292,1760942139371,-500.0,0.00038356,30]
[391875293,1760942139412,-500.0,0.00038356,30]
[391875294,1760942139453,-495.29071754,0.00038356,30]
[391875295,1760942139494,-500.0,0.00038356,30]
[391875296,1760942139536,-500.0,0.00038356,30]
[391875297,1760942139575,-500.0,0.00038356,30]
[391875298,1760942139613,-526.27,0.00038356,30]
[391875299,1760942139653,-500.0,0.00038356,30]
[391875300,1760942139695,-161.41584127,0.00038356,30]
[391875301,1760942139737,-500.0,0.00038356,30]
[391875302,1760942139781,-500.0,0.00038356,30]
[391875303,1760942139826,-500.0,0.00038356,120]
[391875304,1760942139869,-500.0,0.00038356,30]
[391875305,1760942139914,-500.0,0.00038356,30]
[391875306,1760942139960,-500.0,0.00038356,30]
[391875307,1760942140006,-500.0,0.00038356,30]
[391875308,1760942140054,-273.65200447,0.00038356,30]
[391875309,1760942140103,-426.3,0.00038356,30]
[391875310,1760942140153,-186.44024294,0.00038356,30]
[391875311,1760942140208,-646.26637569,0.00038356,30]
[391875312,1760942140258,-254.30063026,0.00038356,30]
[391875313,1760942140305,-500.0,0.00038356,30]
[391875314,1760942140349,-500.0,0.00038356,30]
[391875315,1760942140392,-500.0,0.00038356,30]
[391875316,1760942140436,-230.59,0.00038356,30]
[391875317,1760942140475,-425.88,0.00038356,30]
[391875318,1760942140514,-546.27782033,0.00038356,30]
[391875319,1760942140551,-501.66115641,0.00038356,30]
[391875320,1760942140589,-500.0,0.00038356,30]
[391875321,1760942140627,-500.0,0.00038356,30]
[391875322,1760942140665,-500.0,0.00038356,30]
[391875323,1760942140710,-500.0,0.00038356,30]
[391875324,1760942140754,-291.925384,0.00038356,120]
[391875325,1760942140795,-500.0,0.00038356,30]
[391875326,1760942140835,-508.27711072,0.00038356,30]
[391875327,1760942140873,-500.0,0.00038356,30]
[391875328,1760942140914,-502.36370192,0.00038356,30]
[391875329,1760942140955,-500.0,0.00038356,30]
[391875330,1760942140996,-500.0,0.00038356,30]
[391875331,1760942141037,-500.0,0.00038356,30]
[391875332,1760942141078,-500.0,0.00038356,30]
[391875333,1760942141119,-500.0,0.00038356,30]
[391875334,1760942141161,-151.0,0.00038356,120]
[391875335,1760942141204,-500.0,0.00038356,30]
[391875336,1760942141246,-151.0,0.00038356,120]
[391875337,1760942141290,-500.0,0.00038356,30]
[391875338,1760942141335,-151.0,0.00038356,120]
[391875339,1760942141384,-500.0,0.00038356,30]
[391875340,1760942141430,-500.0,0.00038356,30]
[391875341,1760942141475,-151.0,0.00038356,120]
[391875342,1760942141519,-350.4683464,0.00038356,30]
[391875343,1760942141560,-500.0,0.00038356,30]
[391875344,1760942141602,-260.62,0.00038356,30]
[391875345,1760942141643,-500.0,0.00038356,30]
[391875346,1760942141684,-482.27263152,0.00038356,30]
[391875347,1760942141728,-500.0,0.00038356,30]
[391875348,1760942141773,-500.0,0.00038356,30]
[391875349,1760942141818,-500.0,0.00038356,30]
[391875350,1760942141866,-500.0,0.00038356,30]
[391875351,1760942141911,-407.41,0.00038356,30]
[391875352,1760942141959,-500.0,0.00038356,30]
[391875353,1760942142007,-500.0,0.00038356,30]
[391875354,1760942142055,-500.0,0.00038356,30]
[391875355,1760942142103,-500.0,0.00038356,30]
[391875356,1760942142151,-500.0,0.00038356,30]
[391875357,1760942142298,-500.0,0.00038356,30]
[391875358,1760942142353,-500.0,0.00038356,30]
[391875359,1760942142401,-500.0,0.00038356,30]
[391875360,1760942142449,-500.0,0.00038356,30]
[391875361,1760942142497,-500.0,0.00038356,30]
[391875362,1760942142543,-500.0,0.00038356,30]
[391875363,1760942142588,-500.0,0.00038356,30]
[391875364,1760942142631,-500.0,0.00038356,30]
[391875365,1760942142673,-500.0,0.00038356,30]
[391875366,1760942142712,-500.0,0.00038356,30]
[391875367,1760942142752,-598.23,0.00038356,30]
[391875368,1760942142801,-500.0,0.00038356,30]
[391875369,1760942142843,-500.0,0.00038356,30]
[391875370,1760942142885,-195.26315768,0.00038356,30]
[391875371,1760942142931,-500.0,0.00038356,30]
[391875372,1760942142975,-500.0,0.00038356,30]
[391875373,1760942143018,-500.0,0.00038356,30]
[391875374,1760942143063,-546.03407583,0.00038356,30]
[391875375,1760942143110,-500.0,0.00038356,30]
[391875376,1760942143160,-500.0,0.00038356,30]
[391875377,1760942143211,-500.0,0.00038356,30]
[391875378,1760942143262,-500.0,0.00038356,30]
[391875379,1760942143311,-500.0,0.00038356,30]
[391875380,1760942143358,-500.0,0.00038356,30]
[391875381,1760942143404,-500.0,0.00038356,30]
[391875382,1760942143448,-500.0,0.00038356,30]
[391875383,1760942143495,-500.0,0.00038356,30]
[391875384,1760942143541,-500.0,0.00038356,30]
[391875385,1760942143588,-500.0,0.00038356,30]
[391875386,1760942143631,-500.0,0.00038356,30]
[391875387,1760942143677,-404.12068593,0.00038356,30]
[391875388,1760942143726,-500.0,0.00038356,30]
[391875389,1760942143774,-500.0,0.00038356,30]
[391875390,1760942143824,-500.0,0.00038356,30]
[391875391,1760942143872,-500.0,0.00038356,30]
[391875392,1760942143921,-359.90929873,0.00038356,30]
[391875393,1760942143966,-500.0,0.00038356,30]
[391875394,1760942144012,-519.77,0.00038356,30]
[391875395,1760942144058,-500.0,0.00038356,30]
[391875396,1760942144110,-500.0,0.00038356,30]
[391875397,1760942144161,-500.0,0.00038356,30]
[391875398,1760942144212,-501.92681014,0.00038356,30]
[391875399,1760942144263,-163.830946,0.00038394,60]
[391875400,1760942144315,-156.959617,0.00038394,60]
[391875401,1760942144365,-160.0,0.000384,120]
[391875402,1760942144415,-160.0,0.000384,120]
[391875403,1760942144468,-163.830946,0.0003868,30]
[391875404,1760942144515,-156.959617,0.0003868,30]
[391875405,1760942144563,-249.0,0.00038849,120]
[391875406,1760942144607,-304.8997414,0.00038954,30]
[391875407,1760942144650,-2032.14623121,0.00039,120]
[391875408,1760942144691,-125079.66822904,0.00039,30]
[391875409,1760942144737,-1368.153,0.00039,120]
[391875410,1760942144781,-169.37472144,0.00039,30]
[391875411,1760942144828,-154.761601,0.00039,30]
[391875412,1760942144878,-151.0,0.00039,120]
[391875413,1760942144933,-151.0,0.00039,120]
[391875414,1760942144988,-151.0,0.00039,120]
[391875415,1760942145038,-276.257916,0.00039,120]
[391875416,1760942145089,-480.80644,0.00039,120]
[391875417,1760942145141,-480.80644,0.00039,120]
[391875418,1760942145196,-480.80644,0.00039,120]
[391875419,1760942145255,-480.80644,0.00039,120]
[391875420,1760942145315,-151.909778,0.00039,120]
[391875421,1760942145368,-246.388793,0.00039,120]
[391875422,1760942145418,-163.830946,0.00039003,30]
[391875423,1760942145467,-156.959617,0.00039003,30]
[391875424,1760942145516,-166.39,0.00039012,120]
[391875425,1760942145564,-3090.6,0.00039041,120]
[391875426,1760942145608,-381.64665,0.000391,120]
[391875427,1760942145650,-337.97598,0.000391,120]
[391875428,1760942145693,-229.77046,0.000391,120]
[391875429,1760942145739,-402.77170604,0.000391,120]
[391875430,1760942145780,-166.39,0.00039112,120]
[391875431,1760942145826,-200.0,0.00039114,120]
[391875432,1760942145883,-163.830946,0.00039197,60]
[391875433,1760942145929,-156.959617,0.00039197,60]
[391875434,1760942145974,-5000.0,0.000392,120]
[391875435,1760942146020,-500.0,0.000392,120]
[391875436,1760942146067,-166.39,0.00039212,120]
[391875437,1760942146113,-166.39,0.00039312,120]
[391875438,1760942146160,-163.830946,0.00039326,30]
[391875439,1760942146206,-156.959617,0.00039326,30]
[391875440,1760942146253,-200.0,0.00039338,120]
[391875441,1760942146301,-169397.315067,0.000394,30]
[391875442,1760942146347,-1765.61511281,0.000394,120]
[391875443,1760942146392,-151.0,0.000394,120]
[391875444,1760942146538,-265.784277,0.000394,120]
[391875445,1760942146591,-166.39,0.00039412,120]
[391875446,1760942146634,-155.166118,0.00039444,120]
[391875447,1760942146676,-151.0,0.00039444,120]
[391875448,1760942146718,-236.264492,0.00039444,120]
[391875449,1760942146760,-151.0,0.00039444,120]
[391875450,1760942146804,-480.80644,0.00039444,120]
[391875451,1760942146848,-480.80644,0.00039444,120]
[391875452,1760942146894,-480.80644,0.00039444,120]
[391875453,1760942146939,-480.80644,0.00039444,120]
[391875454,1760942146983,-480.80644,0.00039444,120]
[391875455,1760942147028,-480.80644,0.00039444,120]
[391875456,1760942147075,-480.80644,0.00039444,120]
[391875457,1760942147121,-480.80644,0.00039444,120]
[391875458,1760942147167,-291661.049716,0.00039485,30]
[391875459,1760942147213,-166.39,0.00039512,120]
[391875460,1760942147261,-200.0,0.00039592,120]
[391875461,1760942147314,-200.0,0.00039602,120]
[391875462,1760942147361,-200.0,0.00039602,120]
[391875463,1760942147408,-200.0,0.00039602,120]
[391875464,1760942147459,-166.39,0.00039612,120]
[391875465,1760942147508,-200.0,0.00039638,120]
[391875466,1760942147556,-163.830946,0.0003965,30]
[391875467,1760942147605,-156.959617,0.0003965,30]
[391875468,1760942147659,-166.39,0.00039712,120]
[391875469,1760942147706,-3090.6,0.00039726,120]
[391875470,1760942147748,-1790.74700573,0.000398,120]
[391875471,1760942147790,-1000.0,0.000398,120]
[391875472,1760942147835,-166.39,0.00039812,120]
[391875473,1760942147877,-2830.64872323,0.0003985,60]
[391875474,1760942147917,-879.09131104,0.00039871,120]
[391875475,1760942147958,-1635.0924978,0.0003989,120]
[391875476,1760942147999,-13198.73105722,0.00039895,30]
[391875477,1760942148045,-166.39,0.00039912,120]
[391875478,1760942148092,-524.18126926,0.00039998,30]
[391875479,1760942148139,-1888.0,0.00039999,30]
[391875480,1760942148183,-376.0400773,0.00039999,31]
[391875481,1760942148229,-500.0,0.00039999,31]
[391875482,1760942148274,-301.36311772,0.00039999,31]
[391875483,1760942148319,-652017.23749851,0.0004,120]
[391875484,1760942168089,173.0,0.00024,120]
[391875485,1760942227935,-5000.0,0.00024604,2]
[391875486,1760942232951,0.01,0.00024604,2]
[391875487,1760942232975,4999.99,0.00024604,2]
[391875488,1760942240902,392.74408129,0.00024604,2]
[391875489,1760942278451,-5000.0,0.00024604,2]
[391875490,1760942285371,0.01,0.00024604,2]
[391875491,1760942285394,167.99,0.00024604,2]
[391875492,1760942311793,-5000.0,0.00024604,2]
[391875493,1760942323543,0.01,0.00024604,2]
[391875494,1760942323569,3610.87393026,0.00024604,2]
[391875495,1760942388219,-35781.8000426,0.00027462,30]
[391875496,1760942388258,-217.0188451,0.00029482,16]
[391875497,1760942388298,-431368.43876542,0.0003,15]
[391875498,1760942388347,-158.3,0.00031111,15]
[391875499,1760942388396,-158.3,0.00031211,15]
[391875500,1760942388437,-158.3,0.00031311,15]
[391875501,1760942388476,-158.3,0.00031411,15]
[391875502,1760942388516,-158.3,0.00031511,15]
[391875503,1760942388555,-158.3,0.00031611,15]
[391875504,1760942388595,-158.3,0.00031711,15]
[391875505,1760942388636,-158.3,0.00031811,15]
[391875506,1760942388675,-158.3,0.00031911,15]
[391875507,1760942388713,-158.3,0.00032011,15]
[391875508,1760942388750,-158.36886883,0.00032111,15]
[391875509,1760942388787,-2999.0,0.00032876,120]
[391875510,1760942426234,4155.46019969,0.00024141,2]
[391875511,1760942543010,5000.0,0.00024141,2]
[391875512,1760942566088,844.54980031,0.00024141,2]
[391875513,1760942566116,4155.45019969,0.00024141,2]
[391875514,1760942588770,5000.0,0.00024141,2]
[391875515,1760942611897,844.55980031,0.00024141,2]
[391875516,1760942611924,4155.44019969,0.00024141,2]